Workbook

Sheet Pro Forma
A2: Pro forma Cash Flow Analysis
A3: One Park Place — Period: 09/01/2025 – 09/30/2025
A6: Operating Income
B7: Monthly | C7: Annually
A8: Number of Units | B8: 48 | C8: 48
A9: Average Monthly Rent per Unit | B9: 1270 | C9: 1270
A10: Pet Rent | B10: 520 | C10: =B10*12 -> 6240
A11: Utility Costs Recovered | B11: 1321.04 | C11: =B11*12 -> 15852.48
A12: Total Rental Income | B12: =B8*B9 -> 60960 | C12: =B12*12 -> 731520
A13: Total Vacancy Loss | B13: =B12*0.1 -> 6096 | C13: =C12*0.03 -> 21945.6
A14: Gross Operating Income | B14: =B12+B10+B11-B13 -> 56705.04 | C14: =C12+C10+C11-C13 -> 731666.88
A16: Operating Expenses
A17: Pest Control | B17: 433.01 | C17: =B17*12 -> 5196.12
A18: Maintenance/Make-Ready | B18: 1385.28 | C18: 16623.36
A19: Marketing | B19: 432 | C19: 5184
A20: Property Management Fees (%) | B20: 0.06 | C20: 0.72
A21: Property Management Fees | B21: =B20*B12 -> 3657.6 | C21: 43891.2
A22: Real Estate Taxes | B22: 9634.3 | C22: 115611.6
A23: Property Insurance | B23: 5940.31 | C23: 71283.72
A25: Utilities
A26: - Electricity | B26: 1584.75 | C26: =B26*12 -> 19017
A27: - Water | B27: 2121.49 | C27: =B27*12 -> 25457.88
A28: Operating Expenses | B28: =SUM(B17:B27) -> 25188.8 | C28: =SUM(C17:C27) -> 302265.6
A31: Net Operating Income (NOI)
A32: Total Operating Income | B32: =B14 -> 56705.04 | C32: =C14 -> 731666.88
A33: Total Operating Expense | B33: =B28 -> 25188.8 | C33: =C28 -> 302265.6
A34: Net Operating Income | B34: =B32-B33 -> 31516.24 | C34: =C32-C33 -> 429401.28
